[Event "BIH-chT Premier League 2019"]
[Site "Tuzla"]
[Date "2019.06.14"]
[Round "7.6"]
[White "Ivic, Velimir"]
[Black "Sedlak, Nikola"]
[Result "0-1"]
[ECO "B12"]
[WhiteElo "2518"]
[BlackElo "2583"]
[Annotator "ChessBase"]
[PlyCount "84"]
[EventDate "2019.06.08"]
[EventType "team-tourn"]
[EventCountry "BIH"]
[SourceTitle "playchess.com"]
[Source "ChessBase"]
[SourceQuality "1"]
[TimeControl "40/5400+30:900+30"]

1. e4 {[%emt 0:00:00]} c6 {[%emt 0:00:00]} 2. d4 {[%emt 0:00:00]} d5 {[%emt 0:00:05]} 3. Nd2 {[%emt 0:00:15]} Qb6 {[%emt 0:02:11]} 4. Ngf3 {[%emt 0:02:49]} Bg4 {[%emt 0:00:15]} 5. e5 {[%emt 0:07:37]} e6 {[%emt 0:01:45]} 6. a4 {[%emt 0:08:05]} a5 {[%emt 0:03:12]} 7. h3 {[%emt 0:05:38]} Bh5 {[%emt 0:00:34]} 8. Nb3 {[%emt 0:01:50]} Ne7 {[%emt 0:12:21]} 9. Be2 {[%emt 0:03:31]} Nd7 {[%emt 0:04:35]} 10. O-O {[%emt 0:03:54]} Bxf3 {[%emt 0:04:36]} 11. Bxf3 {[%emt 0:00:06]} Nf5 {[%emt 0:01:00]} 12. Be2 {[%emt 0:06:43]} g6 {[%emt 0:01:31]} 13. c3 {[%emt 0:04:58]} Bg7 {[%emt 0:06:26]} 14. g4 {[%emt 0:14:55]} Ne7 {[%emt 0:02:35]} 15. Be3 {[%emt 0:02:43]} f6 {[%emt 0:02:03]} 16. f4 {[%emt 0:04:05]} h5 {[%emt 0:05:36]} 17. exf6 {[%emt 0:07:26]} Bxf6 {[%emt 0:00:20]} 18. g5 {[%emt 0:05:06]} Bg7 {[%emt 0:02:54]} 19. Rf3 {[%emt 0:06:47]} Nf5 {[%emt 0:02:20]} 20. Bf2 {[%emt 0:00:11]} O-O {[%emt 0:01:52]} 21. Qc2 {[%emt 0:01:38]} Qc7 {[%emt 0:05:06]} 22. Re1 {[%emt 0:09:40]} Rae8 {[%emt 0:04:11]} 23. Bd3 {[%emt 0:02:18]} Rf7 {[%emt 0:00:56]} 24. Nd2 {[%emt 0:01:01]} Bf8 {[%emt 0:02:50]} 25. Nf1 {[%emt 0:00:22]} Qd8 {[%emt 0:01:49]} 26. Ne3 {[%emt 0:00:45]} Bd6 {[%emt 0:00:29]} 27. Nxf5 {[%emt 0:00:24]} exf5 {[%emt 0:00:13]} 28. Rxe8+ {[%emt 0:00:12]} Qxe8 {[%emt 0:00:08]} 29. c4 {[%emt 0:00:12]} Nf8 {[%emt 0:08:03]} 30. Qb3 {[%emt 0:01:15]} Ne6 {[%emt 0:02:55]} 31. cxd5 {[%emt 0:00:11]} Nxf4 {[%emt 0:00:22]} 32. Bc4 {[%emt 0:00:48]} b5 {[%emt 0:03:52]} 33. axb5 {[%emt 0:00:19]} cxb5 {[%emt 0:00:04]} 34. Bxb5 {[%emt 0:00:28]} Qe4 {[%emt 0:03:42]} 35. Bf1 {[%emt 0:00:33]} a4 {[%emt 0:04:41]} 36. Qd1 {[%emt 0:00:05]} Rc7 {[%emt 0:00:50]} 37. Re3 {[%emt 0:00:53]} Qc2 {[%emt 0:00:05]} 38. Re8+ {[%emt 0:00:40]} Kf7 {[%emt 0:00:27]} 39. Qe1 {[%emt 0:00:34]} Qxb2 {[%emt 0:00:48]} 40. Re6 {[%emt 0:00:00]} Rc1 {[%emt 0:00:00]} 41. Rf6+ {[%emt 0:09:34]} Kg7 {[%emt 0:04:37]} 42. Qe3 {[%emt 0:00:36]} Qb1 {[%emt 0:02:18]} 0-1

[Event "BIH-chT Premier League 2019"]
[Site "Tuzla"]
[Date "2019.06.14"]
[Round "7.6"]
[White "Galic, Zeljko"]
[Black "Trumic, Enes"]
[Result "1-0"]
[ECO "A13"]
[WhiteElo "2280"]
[BlackElo "2231"]
[Annotator "NA"]
[PlyCount "53"]
[EventDate "2019.06.08"]
[EventType "team-tourn"]
[EventCountry "BIH"]
[SourceTitle "playchess.com"]
[Source "ChessBase"]
[SourceQuality "1"]
[TimeControl "40/5400+30:900+30"]

1. c4 {[%emt 0:00:00]} e6 {[%emt 0:01:33]} 2. Nf3 {[%emt 0:00:10]} d5 {[%emt 0:00:09]} 3. e3 {[%emt 0:00:26]} Nf6 {[%emt 0:03:25]} 4. b3 {[%emt 0:01:16]} a5 {[%emt 0:01:55]} 5. Nc3 {[%emt 0:01:39]} Nc6 {[%emt 0:01:57]} 6. Bb2 {[%emt 0:00:52]} Be7 {[%emt 0:02:19]} 7. d4 {[%emt 0:01:39]} O-O {[%emt 0:10:05]} 8. Bd3 {[%emt 0:00:23]} a4 {[%emt 0:10:23]} 9. Nxa4 {[%emt 0:07:23]} Bb4+ {[%emt 0:04:41]} 10. Nc3 {[%emt 0:00:49]} dxc4 {[%emt 0:05:27]} 11. bxc4 {[%emt 0:01:46]} e5 {[%emt 0:00:35]} 12. dxe5 {[%emt 0:01:08]} Ng4 {[%emt 0:00:50]} 13. O-O {[%emt 0:00:47]} Ba3 {[%emt 0:02:37]} 14. Bxa3 {[%emt 0:07:14]} Rxa3 {[%emt 0:00:13]} 15. Nd5 {[%emt 0:00:06]} Ncxe5 {[%emt 0:01:12]} 16. Nxe5 {[%emt 0:00:10]} Nxe5 {[%emt 0:00:16]} 17. Bxh7+ {[%emt 0:02:15]} Kxh7 {[%emt 0:05:50]} 18. Qh5+ {[%emt 0:00:21]} Kg8 {[%emt 0:00:07]} 19. Qxe5 {[%emt 0:00:12]} Be6 {[%emt 0:01:35]} 20. Rfd1 {[%emt 0:09:09]} Bxd5 {[%emt 0:12:05]} 21. Rxd5 {[%emt 0:02:05]} Qc8 {[%emt 0:00:54]} 22. h3 {[%emt 0:01:31]} c6 {[%emt 0:01:58]} 23. Rd4 {[%emt 0:01:16]} Qa8 {[%emt 0:04:05]} 24. Rg4 {[%emt 0:05:51]} f6 {[%emt 0:00:33]} 25. Qe6+ {[%emt 0:00:14]} Kh7 {[%emt 0:02:33]} 26. Qd7 {[%emt 0:00:38]} Rg8 {[%emt 0:01:38]} 27. Qf7 {[%emt 0:00:23]} 1-0

[Event "BIH-chT Premier League 2019"]
[Site "Tuzla"]
[Date "2019.06.14"]
[Round "7.7"]
[White "Predojevic, Borki"]
[Black "Saric, Ibro"]
[Result "1/2-1/2"]
[ECO "B13"]
[WhiteElo "2620"]
[BlackElo "2555"]
[Annotator "ChessBase"]
[PlyCount "41"]
[EventDate "2019.06.08"]
[EventType "team-tourn"]
[EventCountry "BIH"]
[SourceTitle "playchess.com"]
[Source "ChessBase"]
[SourceQuality "1"]
[TimeControl "40/5400+30:900+30"]

1. e4 {[%emt 0:00:00]} c6 {[%emt 0:10:18]} 2. d4 {[%emt 0:00:08]} d5 {[%emt 0:00:24]} 3. exd5 {[%emt 0:00:51]} cxd5 {[%emt 0:00:10]} 4. Bd3 {[%emt 0:00:03]} Nc6 {[%emt 0:00:55]} 5. c3 {[%emt 0:00:41]} Nf6 {[%emt 0:00:26]} 6. h3 {[%emt 0:00:51]} g6 {[%emt 0:00:30]} 7. Nf3 {[%emt 0:01:39]} Bf5 {[%emt 0:00:57]} 8. O-O {[%emt 0:03:53]} Bxd3 {[%emt 0:01:23]} 9. Qxd3 {[%emt 0:00:30]} Bg7 {[%emt 0:06:44]} 10. Bf4 {[%emt 0:01:34]} Ne4 {[%emt 0:01:18]} 11. Nbd2 {[%emt 0:00:43]} Nxd2 {[%emt 0:00:47]} 12. Qxd2 {[%emt 0:01:21]} O-O {[%emt 0:00:15]} 13. Rfe1 {[%emt 0:02:24]} e6 {[%emt 0:01:42]} 14. Ne5 {[%emt 0:04:23]} Nxe5 {[%emt 0:03:29]} 15. Bxe5 {[%emt 0:01:15]} Bxe5 {[%emt 0:00:12]} 16. Rxe5 {[%emt 0:00:04]} Qd6 {[%emt 0:00:36]} 17. h4 {[%emt 0:00:06]} h5 {[%emt 0:00:19]} 18. Rxh5 {[%emt 0:01:50]} gxh5 {[%emt 0:00:19]} 19. Qg5+ {[%emt 0:00:04]} Kh7 {[%emt 0:00:09]} 20. Qxh5+ {[%emt 0:00:03]} Kg7 {[%emt 0:00:08]} 21. Qg5+ {[%emt 0:00:02]} 1/2-1/2

[Event "BIH-chT Premier League 2019"]
[Site "Tuzla"]
[Date "2019.06.14"]
[Round "7.7"]
[White "Muratovic, Efim"]
[Black "Kadric, Denis"]
[Result "0-1"]
[ECO "A42"]
[WhiteElo "2384"]
[BlackElo "2550"]
[Annotator "ChessBase"]
[PlyCount "72"]
[EventDate "2019.06.08"]
[EventType "team-tourn"]
[EventCountry "BIH"]
[SourceTitle "playchess.com"]
[Source "ChessBase"]
[SourceQuality "1"]
[TimeControl "40/5400+30:900+30"]

1. d4 {[%emt 0:00:00]} d6 {[%emt 0:00:00]} 2. Nf3 {[%emt 0:00:59]} g6 {[%emt 0:00:01]} 3. c4 {[%emt 0:00:35]} Bg7 {[%emt 0:00:06]} 4. Nc3 {[%emt 0:00:22]} Nd7 {[%emt 0:00:04]} 5. e4 {[%emt 0:02:37]} e5 {[%emt 0:00:05]} 6. Bg5 {[%emt 0:03:34]} f6 {[%emt 0:00:19]} 7. Be3 {[%emt 0:00:16]} Nh6 {[%emt 0:00:03]} 8. Be2 {[%emt 0:05:13]} O-O {[%emt 0:00:08]} 9. h3 {[%emt 0:08:30]} c6 {[%emt 0:00:44]} 10. dxe5 {[%emt 0:07:02]} dxe5 {[%emt 0:00:04]} 11. O-O {[%emt 0:12:35]} Qe7 {[%emt 0:00:37]} 12. Qc1 {[%emt 0:03:38]} Nf7 {[%emt 0:00:05]} 13. c5 {[%emt 0:13:23]} f5 {[%emt 0:01:05]} 14. b4 {[%emt 0:01:58]} f4 {[%emt 0:01:37]} 15. Bd2 {[%emt 0:00:06]} g5 {[%emt 0:05:53]} 16. Nh2 {[%emt 0:00:34]} Nf6 {[%emt 0:02:18]} 17. f3 {[%emt 0:14:23]} h5 {[%emt 0:00:26]} 18. Be1 {[%emt 0:00:51]} Be6 {[%emt 0:00:36]} 19. Bf2 {[%emt 0:01:10]} Bh6 {[%emt 0:01:26]} 20. Qb2 {[%emt 0:01:10]} Kh7 {[%emt 0:00:09]} 21. Rfd1 {[%emt 0:03:04]} Rg8 {[%emt 0:00:12]} 22. Kf1 {[%emt 0:05:55]} Rg7 {[%emt 0:00:16]} 23. Qc2 {[%emt 0:03:17]} Kh8 {[%emt 0:00:10]} 24. Rd3 {[%emt 0:00:38]} Rag8 {[%emt 0:00:50]} 25. Ke1 {[%emt 0:01:29]} g4 {[%emt 0:02:17]} 26. hxg4 {[%emt 0:00:14]} hxg4 {[%emt 0:00:03]} 27. Bh4 {[%emt 0:01:57]} Bg5 {[%emt 0:05:52]} 28. Bxg5 {[%emt 0:00:13]} Nxg5 {[%emt 0:00:02]} 29. Nxg4 {[%emt 0:01:20]} Bxg4 {[%emt 0:00:38]} 30. fxg4 {[%emt 0:00:07]} Rh7 {[%emt 0:00:01]} 31. Rad1 {[%emt 0:02:39]} Ngxe4 {[%emt 0:03:06]} 32. Nxe4 {[%emt 0:00:12]} Nxe4 {[%emt 0:00:03]} 33. Bf3 {[%emt 0:05:41]} Qh4+ {[%emt 0:01:20]} 34. Kf1 {[%emt 0:00:05]} Ng3+ {[%emt 0:00:31]} 35. Kg1 {[%emt 0:00:53]} e4 {[%emt 0:00:44]} 36. Bxe4 {[%emt 0:00:24]} Qh2+ {[%emt 0:00:51]} 0-1

[Event "BIH-chT Premier League 2019"]
[Site "Tuzla"]
[Date "2019.06.14"]
[Round "7.8"]
[White "Djukic, Nikola"]
[Black "Milanovic, Danilo"]
[Result "0-1"]
[ECO "B31"]
[WhiteElo "2547"]
[BlackElo "2496"]
[Annotator "ChessBase"]
[PlyCount "132"]
[EventDate "2019.06.08"]
[EventType "team-tourn"]
[EventCountry "BIH"]
[SourceTitle "playchess.com"]
[Source "ChessBase"]
[SourceQuality "1"]
[TimeControl "40/5400+30:900+30"]

1. e4 {[%emt 0:00:00]} c5 {[%emt 0:00:00]} 2. Nf3 {[%emt 0:00:00]} Nc6 {[%emt 0:00:00]} 3. Bb5 {[%emt 0:00:38]} g6 {[%emt 0:00:31]} 4. O-O {[%emt 0:01:35]} Bg7 {[%emt 0:00:57]} 5. c3 {[%emt 0:00:17]} Nf6 {[%emt 0:01:13]} 6. Re1 {[%emt 0:02:34]} O-O {[%emt 0:01:11]} 7. h3 {[%emt 0:05:59]} d6 {[%emt 0:39:56]} 8. d4 {[%emt 0:00:32]} Bd7 {[%emt 0:01:13]} 9. Bf1 {[%emt 0:21:58]} cxd4 {[%emt 0:10:43]} 10. cxd4 {[%emt 0:00:10]} d5 {[%emt 0:01:15]} 11. e5 {[%emt 0:01:13]} Ne4 {[%emt 0:00:08]} 12. Nbd2 {[%emt 0:02:08]} Nxd2 {[%emt 0:04:56]} 13. Bxd2 {[%emt 0:00:20]} Qb6 {[%emt 0:00:09]} 14. Bc3 {[%emt 0:05:24]} a5 {[%emt 0:09:32]} 15. a4 {[%emt 0:17:54]} e6 {[%emt 0:07:07]} 16. Nh2 {[%emt 0:07:21]} f6 {[%emt 0:00:32]} 17. exf6 {[%emt 0:00:11]} Rxf6 {[%emt 0:02:49]} 18. Bb5 {[%emt 0:04:54]} Raf8 {[%emt 0:07:33]} 19. Bxc6 {[%emt 0:05:43]} bxc6 {[%emt 0:00:18]} 20. Nf3 {[%emt 0:00:27]} Rxf3 {[%emt 0:02:29]} 21. gxf3 {[%emt 0:00:07]} Qd8 {[%emt 0:00:02]} 22. f4 {[%emt 0:07:14]} Rxf4 {[%emt 0:00:33]} 23. Re3 {[%emt 0:01:14]} Qf6 {[%emt 0:06:01]} 24. Qe2 {[%emt 0:04:43]} c5 {[%emt 0:00:26]} 25. Bxa5 {[%emt 0:00:24]} cxd4 {[%emt 0:00:07]} 26. Rb3 {[%emt 0:00:16]} Re4 {[%emt 0:02:42]} 27. Qd3 {[%emt 0:02:46]} h5 {[%emt 0:00:35]} 28. Rb7 {[%emt 0:02:41]} Bc6 {[%emt 0:00:18]} 29. Rc7 {[%emt 0:00:47]} e5 {[%emt 0:00:43]} 30. Bd2 {[%emt 0:01:53]} Be8 {[%emt 0:00:28]} 31. a5 {[%emt 0:01:10]} Qf5 {[%emt 0:00:31]} 32. Ra3 {[%emt 0:00:39]} Bf8 {[%emt 0:00:14]} 33. b4 {[%emt 0:01:23]} Bd6 {[%emt 0:00:31]} 34. Rc1 {[%emt 0:00:26]} Bxb4 {[%emt 0:00:16]} 35. Rb3 {[%emt 0:01:34]} Bxa5 {[%emt 0:00:56]} 36. f3 {[%emt 0:00:43]} Bxd2 {[%emt 0:00:05]} 37. Qxd2 {[%emt 0:00:09]} Rf4 {[%emt 0:00:58]} 38. Rb8 {[%emt 0:00:22]} Qe6 {[%emt 0:00:30]} 39. Rcc8 {[%emt 0:00:55]} Rf8 {[%emt 0:00:07]} 40. Qg5 {[%emt 0:00:00]} e4 {[%emt 0:00:00]} 41. Rxe8 {[%emt 0:04:47]} Rxe8 {[%emt 0:00:53]} 42. Rxe8+ {[%emt 0:00:06]} Qxe8 {[%emt 0:00:02]} 43. Qxd5+ {[%emt 0:00:05]} Qf7 {[%emt 0:01:47]} 44. Qxe4 {[%emt 0:06:56]} Qf6 {[%emt 0:00:27]} 45. Kf2 {[%emt 0:01:22]} Kh7 {[%emt 0:01:31]} 46. Ke2 {[%emt 0:00:56]} Qa6+ {[%emt 0:02:15]} 47. Kd2 {[%emt 0:02:04]} Qa5+ {[%emt 0:00:04]} 48. Kd1 {[%emt 0:00:29]} Qc5 {[%emt 0:05:17]} 49. Ke2 {[%emt 0:02:13]} Kg7 {[%emt 0:00:17]} 50. Kd3 {[%emt 0:00:28]} Qc3+ {[%emt 0:03:13]} 51. Ke2 {[%emt 0:00:04]} Qc4+ {[%emt 0:00:05]} 52. Kd2 {[%emt 0:00:07]} Kf6 {[%emt 0:01:08]} 53. Qf4+ {[%emt 0:00:08]} Ke7 {[%emt 0:00:24]} 54. Qe5+ {[%emt 0:00:35]} Kf7 {[%emt 0:01:18]} 55. Qf4+ {[%emt 0:00:10]} Ke6 {[%emt 0:00:29]} 56. Qe4+ {[%emt 0:00:05]} Kd7 {[%emt 0:00:07]} 57. h4 {[%emt 0:00:46]} Kd8 {[%emt 0:02:25]} 58. f4 {[%emt 0:01:00]} Kd7 {[%emt 0:02:14]} 59. f5 {[%emt 0:01:43]} Qc3+ {[%emt 0:00:14]} 60. Kd1 {[%emt 0:00:29]} Qb3+ {[%emt 0:01:26]} 61. Kd2 {[%emt 0:00:30]} Qe3+ {[%emt 0:00:42]} 62. Qxe3 {[%emt 0:00:06]} dxe3+ {[%emt 0:00:03]} 63. Kxe3 {[%emt 0:00:07]} gxf5 {[%emt 0:00:01]} 64. Kf4 {[%emt 0:01:52]} Ke6 {[%emt 0:00:07]} 65. Kg5 {[%emt 0:00:37]} Ke5 {[%emt 0:00:07]} 66. Kxh5 {[%emt 0:00:06]} Kf6 {[%emt 0:00:03]} 0-1

[Event "BIH-chT Premier League 2019"]
[Site "Tuzla"]
[Date "2019.06.14"]
[Round "7.9"]
[White "Kozul, Zdenko"]
[Black "Runic, Zoran"]
[Result "0-1"]
[ECO "A57"]
[WhiteElo "2575"]
[BlackElo "2319"]
[Annotator "ChessBase"]
[PlyCount "132"]
[EventDate "2019.06.08"]
[EventType "team-tourn"]
[EventCountry "BIH"]
[SourceTitle "playchess.com"]
[Source "ChessBase"]
[SourceQuality "1"]
[TimeControl "40/5400+30:900+30"]

1. d4 {[%emt 1:30:30]} Nf6 {[%emt 1:30:30]} 2. Nf3 {[%emt 0:00:30]} d6 {[%emt 0:00:30]} 3. c4 {[%emt 0:00:30]} g6 {[%emt 0:00:30]} 4. Nc3 {[%emt 0:00:30]} Bg7 {[%emt 0:00:30]} 5. e4 {[%emt 0:00:30]} O-O {[%emt 0:00:30]} 6. h3 {[%emt 0:00:30]} c5 {[%emt 0:00:30]} 7. d5 {[%emt 0:00:30]} b5 {[%emt 0:00:30]} 8. cxb5 {[%emt 0:00:30]} a6 {[%emt 0:00:30]} 9. b6 {[%emt 0:00:30]} Nbd7 {[%emt 0:00:30]} 10. a4 {[%emt 0:00:30]} Qxb6 {[%emt 0:00:30]} 11. a5 {[%emt 0:00:30]} Qc7 {[%emt 0:00:30]} 12. Bc4 {[%emt 0:00:30]} Ne8 {[%emt 0:00:30]} 13. O-O {[%emt 0:00:30]} Rb8 {[%emt 0:00:30]} 14. Qd3 {[%emt 0:00:30]} Qb7 {[%emt 0:00:30]} 15. Na4 {[%emt 0:00:30]} Nc7 {[%emt 0:00:30]} 16. Be3 {[%emt 0:00:30]} Kh8 {[%emt 0:00:30]} 17. Ra2 {[%emt 0:00:30]} f5 {[%emt 0:00:30]} 18. Nc3 {[%emt 0:00:30]} f4 {[%emt 0:00:30]} 19. Bd2 {[%emt 0:00:30]} Ne5 {[%emt 0:00:30]} 20. Nxe5 {[%emt 0:00:30]} Bxe5 {[%emt 0:00:30]} 21. f3 {[%emt 0:00:30]} Bd7 {[%emt 0:00:30]} 22. Ne2 {[%emt 0:00:30]} Nb5 {[%emt 0:00:30]} 23. b3 {[%emt 0:00:30]} g5 {[%emt 0:00:30]} 24. Kf2 {[%emt 0:00:30]} h5 {[%emt 0:00:30]} 25. Ke1 {[%emt 0:00:30]} h4 {[%emt 0:00:30]} 26. Kf2 {[%emt 0:00:30]} Qa7 {[%emt 0:00:30]} 27. Rb1 {[%emt 0:00:30]} Rb7 {[%emt 0:00:30]} 28. Bc1 {[%emt 0:00:30]} Kg7 {[%emt 0:00:30]} 29. Bb2 {[%emt 0:00:30]} Kf6 {[%emt 0:00:30]} 30. Ke1 {[%emt 0:00:30]} Rd8 {[%emt 0:00:30]} 31. Rd1 {[%emt 0:00:30]} Be8 {[%emt 0:00:30]} 32. Qd2 {[%emt 0:00:30]} Kg6 {[%emt 0:00:30]} 33. Bxe5 {[%emt 0:00:30]} dxe5 {[%emt 0:00:30]} 34. Bxb5 {[%emt 0:00:30]} Rxb5 {[%emt 0:00:30]} 35. Qc3 {[%emt 0:00:30]} Kf6 {[%emt 0:00:30]} 36. Rc1 {[%emt 0:00:30]} Rc8 {[%emt 0:00:30]} 37. Rcc2 {[%emt 0:00:30]} Rb4 {[%emt 0:00:30]} 38. Nc1 {[%emt 0:00:30]} Bb5 {[%emt 0:00:30]} 39. Qd2 {[%emt 0:00:30]} c4 {[%emt 0:00:30]} 40. Qxb4 {[%emt 0:00:30]} Qg1+ {[%emt 0:00:30]} 41. Kd2 {[%emt 0:15:30]} Qxg2+ {[%emt 0:15:30]} 42. Kc3 {[%emt 0:00:30]} Qxf3+ {[%emt 0:00:30]} 43. Kb2 {[%emt 0:00:30]} Qxe4 {[%emt 0:00:30]} 44. bxc4 {[%emt 0:00:30]} Rxc4 {[%emt 0:00:30]} 45. Rxc4 {[%emt 0:00:30]} Qxc4 {[%emt 0:00:30]} 46. Qe1 {[%emt 0:00:30]} e4 {[%emt 0:00:30]} 47. Kb1 {[%emt 0:00:30]} e3 {[%emt 0:00:30]} 48. Rc2 {[%emt 0:00:30]} Qe4 {[%emt 0:00:30]} 49. Qc3+ {[%emt 0:00:30]} Kg6 {[%emt 0:00:30]} 50. Qh8 {[%emt 0:00:30]} Qxd5 {[%emt 0:00:30]} 51. Rc8 {[%emt 0:00:30]} Qf5+ {[%emt 0:00:30]} 52. Ka2 {[%emt 0:00:30]} Qe6+ {[%emt 0:00:30]} 53. Ka3 {[%emt 0:00:30]} Qd6+ {[%emt 0:00:30]} 54. Kb3 {[%emt 0:00:30]} Kf5 {[%emt 0:00:30]} 55. Qh7+ {[%emt 0:00:30]} Ke5 {[%emt 0:00:30]} 56. Rc3 {[%emt 0:00:30]} e2 {[%emt 0:00:30]} 57. Nxe2 {[%emt 0:00:30]} Bxe2 {[%emt 0:00:30]} 58. Qh8+ {[%emt 0:00:30]} Ke4 {[%emt 0:00:30]} 59. Qh7+ {[%emt 0:00:30]} Kd4 {[%emt 0:00:30]} 60. Qg7+ {[%emt 0:00:30]} Qe5 {[%emt 0:00:30]} 61. Qxe5+ {[%emt 0:00:30]} Kxe5 {[%emt 0:00:30]} 62. Kc2 {[%emt 0:00:30]} f3 {[%emt 0:00:30]} 63. Kd2 {[%emt 0:00:30]} Kf4 {[%emt 0:00:30]} 64. Ke1 {[%emt 0:00:30]} Kg3 {[%emt 0:00:30]} 65. Rc5 {[%emt 0:00:30]} g4 {[%emt 0:00:30]} 66. hxg4 {[%emt 0:00:30]} Bd3 {[%emt 0:00:30]} 0-1

[Event "BIH-chT Premier League 2019"]
[Site "Tuzla"]
[Date "2019.06.14"]
[Round "7.9"]
[White "Stojanovic, Dalibor"]
[Black "Obad, Andrija"]
[Result "1/2-1/2"]
[ECO "B50"]
[WhiteElo "2507"]
[BlackElo "2290"]
[Annotator "ChessBase"]
[PlyCount "69"]
[EventDate "2019.06.08"]
[EventType "team-tourn"]
[EventCountry "BIH"]
[SourceTitle "playchess.com"]
[Source "ChessBase"]
[SourceQuality "1"]
[TimeControl "40/5400+30:900+30"]

1. e4 {[%emt 1:30:30]} c5 {[%emt 1:30:30]} 2. Nf3 {[%emt 0:00:30]} d6 {[%emt 0:00:30]} 3. Bc4 {[%emt 0:00:30]} Nf6 {[%emt 0:00:30]} 4. d3 {[%emt 0:00:30]} Nc6 {[%emt 0:00:30]} 5. c3 {[%emt 0:00:30]} e6 {[%emt 0:00:30]} 6. Bb3 {[%emt 0:00:30]} Be7 {[%emt 0:00:30]} 7. O-O {[%emt 0:00:30]} O-O {[%emt 0:00:30]} 8. Re1 {[%emt 0:00:30]} e5 {[%emt 0:00:30]} 9. Nbd2 {[%emt 0:00:30]} Be6 {[%emt 0:00:30]} 10. Nf1 {[%emt 0:00:30]} h6 {[%emt 0:00:30]} 11. Ng3 {[%emt 0:00:30]} Qd7 {[%emt 0:00:30]} 12. h3 {[%emt 0:00:30]} Rfe8 {[%emt 0:00:30]} 13. d4 {[%emt 0:00:30]} Bxb3 {[%emt 0:00:30]} 14. axb3 {[%emt 0:00:30]} cxd4 {[%emt 0:00:30]} 15. cxd4 {[%emt 0:00:30]} exd4 {[%emt 0:00:30]} 16. Nxd4 {[%emt 0:00:30]} d5 {[%emt 0:00:30]} 17. Nxc6 {[%emt 0:00:30]} bxc6 {[%emt 0:00:30]} 18. e5 {[%emt 0:00:30]} Bb4 {[%emt 0:00:30]} 19. Bd2 {[%emt 0:00:30]} Bxd2 {[%emt 0:00:30]} 20. Qxd2 Nh7 {[%emt 0:00:30]} 21. Ra4 {[%emt 0:01:00]} f6 {[%emt 0:00:30]} 22. f4 {[%emt 0:00:30]} fxe5 {[%emt 0:00:30]} 23. fxe5 {[%emt 0:00:30]} Re7 {[%emt 0:00:30]} 24. Qd4 {[%emt 0:00:30]} Ng5 {[%emt 0:00:30]} 25. h4 {[%emt 0:00:30]} Nf7 {[%emt 0:00:30]} 26. Re2 {[%emt 0:00:30]} Qe6 {[%emt 0:00:30]} 27. Ra1 {[%emt 0:00:30]} Qg6 {[%emt 0:00:30]} 28. Qf4 {[%emt 0:00:30]} Rae8 {[%emt 0:00:30]} 29. Rae1 {[%emt 0:00:30]} Nd8 {[%emt 0:00:30]} 30. h5 {[%emt 0:00:30]} Ne6 {[%emt 0:00:30]} 31. Qh4 {[%emt 0:00:30]} Qd3 {[%emt 0:00:30]} 32. Re3 {[%emt 0:00:30]} Qc2 {[%emt 0:00:30]} 33. R1e2 {[%emt 0:00:30]} Qb1+ {[%emt 0:00:30]} 34. Re1 {[%emt 0:00:30]} Qc2 {[%emt 0:00:30]} 35. R1e2 {[%emt 0:00:30]} 1/2-1/2

[Event "BIH-chT Premier League 2019"]
[Site "Tuzla"]
[Date "2019.06.14"]
[Round "7.10"]
[White "Iveljic, Igor"]
[Black "Buljubasic, Sabahudin"]
[Result "1/2-1/2"]
[ECO "A04"]
[WhiteElo "2230"]
[BlackElo "2374"]
[Annotator "ChessBase"]
[PlyCount "68"]
[EventDate "2019.06.08"]
[EventType "team-tourn"]
[EventCountry "BIH"]
[SourceTitle "playchess.com"]
[Source "ChessBase"]
[SourceQuality "1"]
[TimeControl "40/5400+30:900+30"]

1. e4 {[%emt 1:30:30]} c5 {[%emt 1:30:30]} 2. Nf3 {[%emt 0:00:30]} e6 {[%emt 0:00:30]} 3. d3 {[%emt 0:00:30]} Nc6 {[%emt 0:00:30]} 4. g3 {[%emt 0:00:30]} g6 {[%emt 0:00:30]} 5. Bg2 {[%emt 0:00:30]} Bg7 {[%emt 0:00:30]} 6. O-O {[%emt 0:00:30]} Nge7 {[%emt 0:00:30]} 7. c3 {[%emt 0:00:30]} e5 {[%emt 0:00:30]} 8. a3 {[%emt 0:00:30]} d6 {[%emt 0:00:30]} 9. b4 {[%emt 0:00:30]} a6 {[%emt 0:00:30]} 10. Nbd2 {[%emt 0:00:30]} O-O {[%emt 0:00:30]} 11. Rb1 {[%emt 0:00:30]} h6 {[%emt 0:00:30]} 12. Nb3 {[%emt 0:00:30]} b6 {[%emt 0:00:30]} 13. Re1 {[%emt 0:00:30]} Be6 {[%emt 0:00:30]} 14. d4 {[%emt 0:00:30]} exd4 {[%emt 0:00:30]} 15. cxd4 {[%emt 0:00:30]} Bxb3 {[%emt 0:00:30]} 16. Qxb3 {[%emt 0:00:30]} Nxd4 {[%emt 0:00:30]} 17. Nxd4 {[%emt 0:00:30]} cxd4 {[%emt 0:00:30]} 18. Bb2 {[%emt 0:00:30]} b5 {[%emt 0:00:30]} 19. e5 {[%emt 0:00:30]} Rc8 {[%emt 0:00:30]} 20. Bxd4 {[%emt 0:00:30]} Nf5 {[%emt 0:00:30]} 21. Ba1 {[%emt 0:00:30]} dxe5 {[%emt 0:00:30]} 22. Bxe5 {[%emt 0:00:30]} Nd4 {[%emt 0:00:30]} 23. Bxd4 {[%emt 0:00:30]} Bxd4 {[%emt 0:00:30]} 24. Rbd1 {[%emt 0:00:30]} Qb6 {[%emt 0:00:30]} 25. Re2 {[%emt 0:00:30]} Rc3 {[%emt 0:00:30]} 26. Qa2 {[%emt 0:00:30]} Qf6 {[%emt 0:00:30]} 27. Red2 {[%emt 0:00:30]} Be5 {[%emt 0:00:30]} 28. Be4 {[%emt 0:00:30]} Rc4 {[%emt 0:00:30]} 29. Bd5 {[%emt 0:00:30]} Rc3 {[%emt 0:00:30]} 30. Kg2 {[%emt 0:00:30]} h5 {[%emt 0:00:30]} 31. Rd3 {[%emt 0:00:30]} Rfc8 {[%emt 0:00:30]} 32. Qe2 {[%emt 0:00:30]} R8c7 {[%emt 0:00:30]} 33. Rxc3 {[%emt 0:00:30]} Rxc3 {[%emt 0:00:30]} 34. Rd3 {[%emt 0:00:30]} Rxd3 {[%emt 0:00:30]} 1/2-1/2